[Event "MČR mládeže v rapid šachu 2024 H10"]
[Site "Harrachov, Czech Republic"]
[Date "????.??.??"]
[Round "4.3"]
[White "Bucek Vit"]
[Black "Krivka Lukas"]
[Result "1-0"]
[TimeControl "20+5"]
[WhiteFideId "23750812"]
[BlackFideId "23752092"]
[WhiteElo "1586"]
[BlackElo "1489"]

1. e4 {[%clk 00:20:09]} c6 {[%clk 00:20:09]} {[%emt 00:00:03]} 2. d4 {[%clk
00:20:13]} d5 {[%clk 00:20:11]} {[%emt 00:00:02]} 3. Nc3 {[%clk 00:20:18]}
{[%emt 00:00:02]} dxe4 {[%clk 00:20:15]} {[%emt 00:00:03]} 4. Nxe4 Bf5 {[%clk
00:20:18]} 5. Ng3 {[%clk 00:20:25]} {[%emt 00:00:01]} Bg6 {[%clk 00:20:22]} 6.
h4 {[%clk 00:20:29]} {[%emt 00:00:02]} h6 {[%clk 00:20:26]} {[%emt 00:00:02]} 7.
Nf3 {[%clk 00:20:31]} {[%emt 00:00:01]} Nd7 {[%clk 00:20:31]} 8. h5 {[%clk
00:20:35]} Bh7 {[%clk 00:20:35]} 9. Bd3 {[%clk 00:20:39]} {[%emt 00:00:04]}
Bxd3 {[%clk 00:20:39]} 10. Qxd3 {[%clk 00:20:43]} e6 {[%clk 00:20:39]} {[%emt
00:00:06]} 11. Bd2 {[%clk 00:20:47]} Qc7 {[%clk 00:20:43]} 12. O-O-O {[%clk
00:20:49]} {[%emt 00:00:02]} Ngf6 {[%clk 00:20:39]} {[%emt 00:00:09]} 13. Rde1
{[%clk 00:20:23]} {[%emt 00:00:31]} Bd6 {[%clk 00:20:35]} {[%emt 00:00:10]} 14.
Ne4 {[%clk 00:19:51]} {[%emt 00:00:38]} Nxe4 {[%clk 00:20:38]} {[%emt
00:00:02]} 15. Qxe4 {[%clk 00:19:53]} {[%emt 00:00:02]} Nf6 {[%clk 00:20:42]}
{[%emt 00:00:01]} 16. Qd3 {[%clk 00:19:57]} {[%emt 00:00:01]} Bf4 {[%clk
00:20:14]} {[%emt 00:00:32]} 17. Ne5 {[%clk 00:19:34]} {[%emt 00:00:28]} Bxd2+
{[%clk 00:20:10]} {[%emt 00:00:10]} 18. Qxd2 {[%clk 00:19:33]} {[%emt
00:00:06]} Nd7 {[%clk 00:19:36]} {[%emt 00:00:39]} 19. Nxd7 {[%clk 00:19:03]}
{[%emt 00:00:34]} Qxd7 {[%clk 00:19:40]} {[%emt 00:00:02]} 20. Qc3 {[%clk
00:18:34]} {[%emt 00:00:34]} O-O-O {[%clk 00:19:19]} {[%emt 00:00:26]} 21. Rd1
{[%clk 00:18:14]} {[%emt 00:00:26]} Qd5 {[%clk 00:18:58]} {[%emt 00:00:27]} 22.
Kb1 {[%clk 00:17:58]} {[%emt 00:00:20]} Rd7 {[%clk 00:12:57]} {[%emt 00:06:12]}
23. Qa3 {[%clk 00:17:44]} {[%emt 00:00:21]} a6 {[%clk 00:12:27]} {[%emt
00:00:37]} 24. Qg3 {[%clk 00:17:07]} {[%emt 00:00:41]} f6 {[%clk 00:11:39]}
{[%emt 00:00:54]} 25. Rhe1 {[%clk 00:16:55]} {[%emt 00:00:15]} e5 {[%clk
00:10:04]} {[%emt 00:01:42]} 26. c3 {[%clk 00:16:25]} {[%emt 00:00:35]} exd4
{[%clk 00:09:32]} {[%emt 00:00:37]} 27. cxd4 {[%clk 00:15:46]} {[%emt
00:00:44]} Qxh5 {[%clk 00:09:03]} {[%emt 00:00:34]} 28. d5 {[%clk 00:14:05]}
{[%emt 00:01:46]} Rxd5 {[%clk 00:06:23]} {[%emt 00:02:44]} 29. Rxd5 {[%clk
00:14:08]} {[%emt 00:00:03]} Qxd5 {[%clk 00:06:19]} {[%emt 00:00:09]} 30. Qxg7
{[%clk 00:14:03]} {[%emt 00:00:10]} Qd3+ {[%clk 00:06:07]} {[%emt 00:00:17]} 31.
Ka1 {[%clk 00:14:03]} {[%emt 00:00:05]} Rd8 {[%clk 00:05:30]} {[%emt 00:00:42]}
32. a3 {[%clk 00:13:42]} {[%emt 00:00:27]} Qd2 {[%clk 00:04:40]} {[%emt
00:00:55]} 33. Qg4+ {[%clk 00:13:34]} {[%emt 00:00:09]} Qd7 {[%clk 00:04:12]}
{[%emt 00:00:37]} 34. Qf3 {[%clk 00:12:56]} {[%emt 00:00:43]} Qd6 {[%clk
00:03:44]} {[%emt 00:00:34]} 35. Qh3+ {[%clk 00:12:46]} {[%emt 00:00:12]} Kc7
{[%clk 00:02:32]} {[%emt 00:01:20]} 36. Qxh6 {[%clk 00:12:24]} {[%emt
00:00:27]} Qd2 {[%clk 00:01:43]} {[%emt 00:00:54]} 37. Qxd2 {[%clk 00:10:20]}
{[%emt 00:02:09]} Rxd2 {[%clk 00:01:48]} {[%emt 00:00:01]} 38. Rf1 {[%clk
00:10:23]} {[%emt 00:00:02]} Kd6 {[%clk 00:01:51]} {[%emt 00:00:01]} 39. Kb1
{[%clk 00:10:27]} {[%emt 00:00:02]} Rd5 {[%clk 00:01:43]} {[%emt 00:00:13]} 40.
Kc2 {[%clk 00:10:20]} {[%emt 00:00:12]} Rg5 {[%clk 00:01:47]} {[%emt 00:00:01]}
41. g3 {[%clk 00:10:21]} {[%emt 00:00:04]} b5 {[%clk 00:01:42]} {[%emt
00:00:10]} 42. Rd1+ {[%clk 00:09:56]} {[%emt 00:00:29]} Kc7 {[%clk 00:01:40]}
{[%emt 00:00:08]} 43. Rd4 {[%clk 00:09:37]} {[%emt 00:00:23]} Rf5 {[%clk
00:01:36]} {[%emt 00:00:09]} 44. f4 {[%clk 00:09:34]} {[%emt 00:00:07]} c5
{[%clk 00:01:20]} {[%emt 00:00:22]} 45. Rd2 {[%clk 00:09:22]} {[%emt 00:00:15]}
Rh5 {[%clk 00:01:24]} {[%emt 00:00:03]} 46. Kd3 {[%clk 00:09:10]} {[%emt
00:00:17]} Rh3 {[%clk 00:01:27]} {[%emt 00:00:02]} 47. Rg2 {[%clk 00:09:09]}
{[%emt 00:00:06]} f5 {[%clk 00:01:28]} {[%emt 00:00:05]} 48. Ke3 {[%clk
00:09:08]} {[%emt 00:00:05]} b4 {[%clk 00:01:11]} {[%emt 00:00:23]} 49. axb4
{[%clk 00:08:58]} {[%emt 00:00:16]} cxb4 {[%clk 00:01:15]} 50. Kf3 {[%clk
00:09:00]} {[%emt 00:00:02]} a5 {[%clk 00:01:01]} {[%emt 00:00:20]} 51. Rc2+
{[%clk 00:08:43]} {[%emt 00:00:21]} Kb6 {[%clk 00:01:05]} {[%emt 00:00:01]} 52.
Kg2 {[%clk 00:08:44]} {[%emt 00:00:04]} Rh8 {[%clk 00:00:58]} {[%emt 00:00:13]}
53. Re2 {[%clk 00:08:35]} {[%emt 00:00:13]} a4 {[%clk 00:00:50]} {[%emt
00:00:14]} 54. Re6+ {[%clk 00:08:12]} {[%emt 00:00:28]} Kb7 {[%clk 00:00:48]}
{[%emt 00:00:08]} 55. Re7+ {[%clk 00:08:11]} {[%emt 00:00:06]} Kb6 {[%clk
00:00:49]} {[%emt 00:00:04]} 56. Re6+ {[%clk 00:08:10]} {[%emt 00:00:05]} Kc5
{[%clk 00:00:36]} {[%emt 00:00:18]} 57. Re5+ {[%clk 00:08:10]} {[%emt
00:00:04]} Kc4 {[%clk 00:00:41]} 58. Rxf5 {[%clk 00:08:09]} {[%emt 00:00:06]}
Kb3 {[%emt 00:00:02]} 59. Rb5 {[%clk 00:07:56]} {[%emt 00:00:17]} a3 {[%clk
00:00:44]} {[%emt 00:00:07]} 60. bxa3 {[%clk 00:07:42]} {[%emt 00:00:19]} Kxa3
{[%clk 00:00:49]} {[%emt 00:00:01]} 61. g4 {[%clk 00:07:45]} {[%emt 00:00:01]}
b3 {[%clk 00:00:52]} {[%emt 00:00:02]} 62. f5 {[%clk 00:07:47]} {[%emt
00:00:03]} b2 {[%clk 00:00:52]} {[%emt 00:00:05]} 63. g5 {[%clk 00:07:49]}
{[%emt 00:00:03]} Rg8 {[%clk 00:00:56]} {[%emt 00:00:01]} 64. g6 {[%clk
00:07:53]} {[%emt 00:00:01]} Ka2 {[%clk 00:00:56]} {[%emt 00:00:05]} 65. Kf3
{[%clk 00:07:55]} {[%emt 00:00:02]} b1=Q {[%clk 00:00:15]} {[%emt 00:00:45]} 66.
Rxb1 {[%clk 00:07:58]} {[%emt 00:00:03]} Kxb1 {[%clk 00:00:19]} 67. Kg4 {[%clk
00:08:00]} {[%emt 00:00:03]} Kc2 {[%clk 00:00:23]} {[%emt 00:00:01]} 68. Kg5
{[%clk 00:08:04]} Kd3 {[%clk 00:00:28]} 69. f6 {[%clk 00:08:09]} Ke4 {[%clk
00:00:14]} {[%emt 00:00:19]} 70. f7 {[%clk 00:08:12]} {[%emt 00:00:02]} Ra8
{[%clk 00:00:13]} {[%emt 00:00:06]} 71. g7 {[%clk 00:08:09]} {[%emt 00:00:08]}
Ra5+ {[%clk 00:00:13]} {[%emt 00:00:06]} 72. Kh6 {[%clk 00:08:12]} {[%emt
00:00:02]} Ra6+ {[%clk 00:00:17]} {[%emt 00:00:01]} 73. Kh7 {[%clk 00:08:16]}
Ra1 {[%clk 00:00:17]} {[%emt 00:00:05]} 74. f8=Q {[%clk 00:08:15]} {[%emt
00:00:05]} Rh1+ {[%clk 00:00:20]} {[%emt 00:00:02]} 75. Kg8 {[%clk 00:08:19]}
{[%emt 00:00:01]} Ra1 {[%clk 00:00:10]} {[%emt 00:00:16]} 76. Qe7+ {[%clk
00:08:13]} {[%emt 00:00:11]} Kf5 {[%clk 00:00:14]} {[%emt 00:00:02]} 77. Qd7+
{[%clk 00:08:13]} {[%emt 00:00:05]} Ke5 {[%clk 00:00:11]} {[%emt 00:00:07]} 78.
Qc7+ {[%clk 00:08:14]} {[%emt 00:00:04]} Kf5 {[%clk 00:00:12]} {[%emt
00:00:04]} 79. Qc5+ {[%clk 00:08:15]} {[%emt 00:00:05]} Ke6 {[%clk 00:00:13]}
{[%emt 00:00:04]} 80. Kh8 {[%clk 00:08:07]} {[%emt 00:00:13]} Rh1+ {[%clk
00:00:15]} {[%emt 00:00:03]} 81. Kg8 {[%clk 00:08:08]} {[%emt 00:00:04]} Ra1
{[%clk 00:00:16]} {[%emt 00:00:03]} 82. Qc6+ {[%clk 00:08:07]} {[%emt
00:00:06]} Ke7 {[%clk 00:00:14]} {[%emt 00:00:04]} 83. Qb7+ {[%clk 00:08:08]}
{[%emt 00:00:07]} Ke6 {[%clk 00:00:16]} {[%emt 00:00:02]} 84. Qf7+ {[%clk
00:08:02]} {[%emt 00:00:12]} Kd6 {[%clk 00:00:14]} {[%emt 00:00:05]} 85. Qf6+
{[%clk 00:08:06]} {[%emt 00:00:03]} 1-0



[ePGN "0.1;DGT LiveChess/2.2.6"]

[Event "MČR mládeže v rapid šachu 2024 H10"]
[Site "Harrachov, Czech Republic"]
[Date "????.??.??"]
[Round "4.4"]
[White "Strihavka Petr"]
[Black "Temirbek Amirali"]
[Result "1-0"]
[TimeControl "20+5"]
[WhiteFideId "23760702"]
[BlackFideId "447019808"]
[WhiteElo "1546"]
[BlackElo "1514"]

1. e4 {[%clk 00:20:08]} {[%emt 00:00:01]} e5 {[%clk 00:20:07]} {[%emt
00:00:04]} 2. Nf3 {[%clk 00:20:12]} Nc6 {[%clk 00:20:09]} {[%emt 00:00:03]} 3.
Nc3 {[%clk 00:20:14]} {[%emt 00:00:03]} Nf6 {[%clk 00:20:09]} {[%emt 00:00:05]}
4. d4 {[%clk 00:20:18]} {[%emt 00:00:02]} exd4 {[%clk 00:19:52]} {[%emt
00:00:22]} 5. Nxd4 {[%clk 00:20:20]} {[%emt 00:00:02]} Bb4 {[%clk 00:19:39]}
{[%emt 00:00:18]} 6. Nxc6 {[%clk 00:20:21]} {[%emt 00:00:03]} bxc6 {[%clk
00:19:42]} {[%emt 00:00:02]} 7. Bd3 {[%clk 00:20:24]} {[%emt 00:00:02]} O-O
{[%clk 00:19:42]} {[%emt 00:00:05]} 8. O-O {[%clk 00:20:26]} {[%emt 00:00:03]}
a5 {[%clk 00:19:19]} {[%emt 00:00:28]} 9. Bg5 {[%clk 00:20:27]} {[%emt
00:00:03]} Be7 {[%clk 00:19:10]} {[%emt 00:00:14]} 10. e5 {[%clk 00:20:05]}
{[%emt 00:00:27]} Nd5 {[%clk 00:19:07]} {[%emt 00:00:09]} 11. Bxe7 {[%clk
00:19:43]} {[%emt 00:00:26]} Qxe7 {[%clk 00:18:43]} {[%emt 00:00:30]} 12. Nxd5
{[%clk 00:19:35]} {[%emt 00:00:13]} cxd5 {[%clk 00:18:46]} {[%emt 00:00:02]} 13.
Re1 {[%clk 00:19:29]} {[%emt 00:00:10]} Bb7 {[%clk 00:17:55]} {[%emt 00:00:57]}
14. Qg4 {[%clk 00:18:41]} {[%emt 00:00:53]} Bc6 {[%clk 00:16:58]} {[%emt
00:01:03]} 15. Re3 {[%clk 00:18:28]} {[%emt 00:00:16]} f6 {[%clk 00:16:03]}
{[%emt 00:01:01]} 16. e6 {[%clk 00:17:56]} {[%emt 00:00:37]} dxe6 {[%clk
00:15:41]} {[%emt 00:00:28]} 17. Rxe6 {[%clk 00:17:49]} {[%emt 00:00:11]} Qc5
{[%clk 00:15:00]} {[%emt 00:00:46]} 18. Qh5 {[%clk 00:17:10]} {[%emt 00:00:44]}
h6 {[%clk 00:14:38]} {[%emt 00:00:28]} 19. Rae1 {[%clk 00:16:33]} {[%emt
00:00:42]} Rf7 {[%clk 00:13:48]} {[%emt 00:00:55]} 20. Qg6 {[%clk 00:16:07]}
{[%emt 00:00:31]} Bd7 {[%clk 00:12:51]} {[%emt 00:01:02]} 21. Qh7+ {[%clk
00:16:05]} {[%emt 00:00:07]} Kf8 {[%clk 00:12:23]} {[%emt 00:00:33]} 22. Qh8#
{[%clk 00:16:08]} {[%emt 00:00:02]} 1-0



[ePGN "0.1;DGT LiveChess/2.2.6"]

[Event "MČR mládeže v rapid šachu 2024 H10"]
[Site "Harrachov, Czech Republic"]
[Date "????.??.??"]
[Round "4.5"]
[White "Vo Daniel"]
[Black "Bohm Ondrej"]
[Result "1-0"]
[TimeControl "20+5"]
[WhiteFideId "23761229"]
[BlackFideId "23773928"]
[WhiteElo "1679"]
[BlackElo "1515"]

1. e4 {[%clk 00:20:09]} e5 {[%clk 00:19:56]} {[%emt 00:00:16]} 2. Nf3 {[%clk
00:20:06]} {[%emt 00:00:07]} Nc6 {[%clk 00:19:59]} {[%emt 00:00:01]} 3. d4
{[%clk 00:20:03]} {[%emt 00:00:07]} exd4 {[%clk 00:19:54]} {[%emt 00:00:11]} 4.
Bc4 {[%clk 00:19:49]} {[%emt 00:00:19]} Bc5 {[%clk 00:19:51]} {[%emt 00:00:08]}
5. c3 {[%clk 00:19:40]} {[%emt 00:00:14]} dxc3 {[%clk 00:19:44]} {[%emt
00:00:12]} 6. Bxf7+ {[%clk 00:19:43]} {[%emt 00:00:02]} Kxf7 {[%clk 00:19:26]}
{[%emt 00:00:24]} 7. Qd5+ {[%clk 00:19:46]} {[%emt 00:00:02]} Ke8 {[%clk
00:19:25]} {[%emt 00:00:05]} 8. Qh5+ {[%clk 00:19:49]} {[%emt 00:00:03]} g6
{[%clk 00:19:18]} {[%emt 00:00:13]} 9. Qxc5 {[%clk 00:19:51]} {[%emt 00:00:03]}
Nge7 {[%clk 00:18:58]} {[%emt 00:00:25]} 10. Qxc3 {[%clk 00:19:43]} {[%emt
00:00:14]} Rf8 {[%clk 00:18:56]} {[%emt 00:00:07]} 11. Bh6 {[%clk 00:19:32]}
{[%emt 00:00:15]} Rg8 {[%clk 00:18:47]} {[%emt 00:00:13]} 12. Nbd2 {[%clk
00:19:15]} {[%emt 00:00:23]} d5 {[%clk 00:18:41]} {[%emt 00:00:12]} 13. O-O
{[%clk 00:18:40]} {[%emt 00:00:40]} d4 {[%clk 00:17:55]} {[%emt 00:00:50]} 14.
Qc4 {[%clk 00:18:16]} {[%emt 00:00:29]} Bg4 {[%clk 00:16:36]} {[%emt 00:01:25]}
15. Ng5 {[%clk 00:17:56]} {[%emt 00:00:24]} Qd7 {[%clk 00:15:48]} {[%emt
00:00:53]} 16. Nxh7 {[%clk 00:16:57]} {[%emt 00:01:04]} Kd8 {[%clk 00:15:14]}
{[%emt 00:00:38]} 17. Nf6 {[%clk 00:16:40]} {[%emt 00:00:22]} Qd6 {[%clk
00:15:09]} {[%emt 00:00:10]} 18. Nxg8 {[%clk 00:16:43]} {[%emt 00:00:02]} Be6
{[%clk 00:15:08]} {[%emt 00:00:06]} 19. Qd3 {[%clk 00:16:04]} {[%emt 00:00:30]}
Nxg8 {[%clk 00:15:11]} {[%emt 00:00:16]} 20. Bg5+ {[%clk 00:15:55]} {[%emt
00:00:14]} Kd7 {[%clk 00:15:06]} {[%emt 00:00:15]} 21. f4 {[%clk 00:15:28]}
{[%emt 00:00:37]} Qc5 {[%clk 00:14:38]} {[%emt 00:00:34]} 22. f5 {[%clk
00:15:16]} {[%emt 00:00:17]} Bf7 {[%clk 00:14:08]} {[%emt 00:00:34]} 23. Rac1
{[%clk 00:14:47]} {[%emt 00:00:34]} Nb4 {[%clk 00:13:53]} {[%emt 00:00:20]} 24.
Qh3 {[%clk 00:14:14]} {[%emt 00:00:37]} Qb6 {[%clk 00:13:50]} {[%emt 00:00:08]}
25. fxg6+ {[%clk 00:14:09]} {[%emt 00:00:49]} Be6 {[%clk 00:13:34]} {[%emt
00:00:22]} 26. Rf7+ {[%clk 00:15:06]} {[%emt 00:00:07]} Ke8 {[%clk 00:13:26]}
{[%emt 00:00:12]} 27. Qf3 {[%clk 00:14:49]} {[%emt 00:00:23]} d3+ {[%clk
00:13:12]} {[%emt 00:00:20]} 28. Be3 {[%clk 00:14:50]} {[%emt 00:00:04]} Qd6
{[%clk 00:13:01]} {[%emt 00:00:15]} 29. Bc5 {[%clk 00:14:35]} {[%emt 00:00:20]}
Qe5 {[%clk 00:12:42]} {[%emt 00:00:21]} 30. Rf8+ {[%clk 00:13:40]} {[%emt
00:01:04]} Kd7 {[%clk 00:12:31]} {[%emt 00:00:15]} 31. Rxa8 {[%clk 00:13:39]}
{[%emt 00:00:07]} Nxa2 {[%clk 00:12:17]} {[%emt 00:00:19]} 32. Qxd3+ {[%clk
00:13:35]} {[%emt 00:00:08]} Kc6 {[%clk 00:12:16]} {[%emt 00:00:06]} 33. Bd6+
{[%clk 00:13:28]} {[%emt 00:00:12]} Kb6 {[%clk 00:12:08]} {[%emt 00:00:13]} 1-0



[ePGN "0.1;DGT LiveChess/2.2.6"]

[Event "MČR mládeže v rapid šachu 2024 H10"]
[Site "Harrachov, Czech Republic"]
[Date "????.??.??"]
[Round "4.6"]
[White "Burel Jan"]
[Black "Trejbal Jindrich"]
[Result "1/2-1/2"]
[TimeControl "20+5"]
[WhiteFideId "23754907"]
[BlackFideId "23743948"]
[WhiteElo "1566"]
[BlackElo "1631"]

1. e4 {[%clk 00:20:08]} {[%emt 00:00:01]} e5 {[%clk 00:20:09]} {[%emt
00:00:02]} 2. Nf3 {[%clk 00:20:11]} {[%emt 00:00:03]} Nf6 {[%clk 00:20:12]}
{[%emt 00:00:01]} 3. Nc3 {[%clk 00:20:13]} {[%emt 00:00:03]} Nc6 {[%clk
00:20:16]} 4. Bb5 {[%clk 00:20:14]} {[%emt 00:00:05]} Bb4 {[%clk 00:20:08]}
{[%emt 00:00:13]} 5. d3 {[%clk 00:20:11]} {[%emt 00:00:08]} d6 {[%clk
00:20:08]} {[%emt 00:00:06]} 6. Qe2 {[%clk 00:19:48]} {[%emt 00:00:26]} O-O
{[%clk 00:19:50]} {[%emt 00:00:23]} 7. Bg5 {[%clk 00:19:43]} {[%emt 00:00:09]}
h6 {[%clk 00:19:47]} {[%emt 00:00:09]} 8. Bd2 {[%clk 00:19:33]} {[%emt
00:00:15]} a6 {[%clk 00:19:04]} {[%emt 00:00:47]} 9. Bc4 {[%clk 00:19:25]}
{[%emt 00:00:12]} Be6 {[%clk 00:18:55]} {[%emt 00:00:15]} 10. Nd5 {[%clk
00:18:53]} {[%emt 00:00:37]} Bxd2+ {[%clk 00:18:31]} {[%emt 00:00:30]} 11. Qxd2
{[%clk 00:18:55]} {[%emt 00:00:03]} b5 {[%clk 00:17:31]} {[%emt 00:01:05]} 12.
Nxf6+ {[%clk 00:18:49]} {[%emt 00:00:11]} Qxf6 {[%clk 00:17:33]} {[%emt
00:00:03]} 13. Bb3 {[%clk 00:18:41]} {[%emt 00:00:12]} Nd4 {[%clk 00:16:16]}
{[%emt 00:01:23]} 14. Nxd4 {[%clk 00:18:32]} {[%emt 00:00:14]} exd4 {[%clk
00:16:17]} {[%emt 00:00:04]} 15. O-O {[%clk 00:18:25]} {[%emt 00:00:12]} Rae8
{[%clk 00:14:03]} {[%emt 00:02:19]} 16. Qa5 {[%clk 00:17:15]} {[%emt 00:01:09]}
Bxb3 {[%clk 00:12:07]} {[%emt 00:02:07]} 17. axb3 {[%clk 00:17:16]} {[%emt
00:00:04]} Re6 {[%clk 00:10:10]} {[%emt 00:02:02]} 18. Qxa6 {[%clk 00:16:16]}
{[%emt 00:01:04]} Qe5 {[%clk 00:08:56]} {[%emt 00:01:19]} 19. Ra5 {[%clk
00:15:21]} {[%emt 00:01:00]} Qc5 {[%clk 00:08:00]} {[%emt 00:01:17]} 20. Rc1
{[%clk 00:13:51]} {[%emt 00:01:29]} c6 {[%clk 00:07:40]} {[%emt 00:00:26]} 21.
Qa7 {[%clk 00:13:37]} {[%emt 00:00:18]} Qg5 {[%clk 00:07:05]} {[%emt 00:00:40]}
22. Raa1 {[%clk 00:13:17]} {[%emt 00:00:24]} Rg6 {[%clk 00:06:56]} {[%emt
00:00:14]} 23. g3 {[%clk 00:13:20]} {[%emt 00:00:03]} c5 {[%clk 00:06:33]}
{[%emt 00:00:28]} 24. Qd7 {[%clk 00:12:47]} {[%emt 00:00:34]} f5 {[%clk
00:05:46]} {[%emt 00:00:55]} 25. exf5 {[%clk 00:09:25]} {[%emt 00:03:27]} Rxf5
{[%clk 00:05:30]} {[%emt 00:00:22]} 26. Ra8+ {[%clk 00:08:56]} {[%emt
00:00:33]} Kh7 {[%clk 00:04:36]} {[%emt 00:01:00]} 27. Rf1 {[%clk 00:08:47]}
{[%emt 00:00:13]} Rgf6 {[%clk 00:03:58]} {[%emt 00:00:45]} 28. Qe8 {[%clk
00:08:22]} {[%emt 00:00:15]} Rf8 {[%clk 00:03:30]} {[%emt 00:00:46]} 29. Qc6
{[%clk 00:08:00]} {[%emt 00:00:27]} Rxa8 {[%clk 00:03:09]} {[%emt 00:00:27]} 30.
Qxa8 {[%clk 00:08:01]} {[%emt 00:00:04]} Rf6 {[%clk 00:02:39]} {[%emt
00:00:35]} 31. f4 {[%clk 00:07:10]} {[%emt 00:00:56]} Qg4 {[%clk 00:02:11]}
{[%emt 00:00:32]} 32. Qf3 {[%clk 00:06:55]} {[%emt 00:00:20]} Qxf3 {[%clk
00:01:56]} {[%emt 00:00:21]} 33. Rxf3 {[%clk 00:06:58]} {[%emt 00:00:02]} Re6
{[%emt 00:00:03]} 34. Kf2 {[%clk 00:06:42]} {[%emt 00:00:16]} d5 {[%clk
00:01:46]} {[%emt 00:00:23]} 35. c3 {[%clk 00:06:03]} {[%emt 00:00:39]} Ra6
{[%clk 00:01:25]} {[%emt 00:00:31]} 36. cxd4 {[%clk 00:06:00]} {[%emt
00:00:08]} cxd4 {[%clk 00:01:30]} 37. Kg2 {[%clk 00:05:45]} {[%emt 00:00:20]}
Kg6 {[%clk 00:01:16]} {[%emt 00:00:20]} 38. Kh3 {[%clk 00:05:39]} {[%emt
00:00:10]} Ra2 {[%clk 00:01:10]} {[%emt 00:00:12]} 39. Rf2 {[%clk 00:05:41]}
{[%emt 00:00:02]} h5 {[%clk 00:01:11]} {[%emt 00:00:04]} 40. g4 {[%clk
00:05:36]} {[%emt 00:00:09]} Kh6 {[%clk 00:00:58]} {[%emt 00:00:19]} 41. g5+
{[%clk 00:05:34]} {[%emt 00:00:07]} Kg6 {[%clk 00:01:00]} {[%emt 00:00:04]} 42.
Kh4 {[%clk 00:05:37]} {[%emt 00:00:01]} Ra1 {[%clk 00:00:53]} {[%emt 00:00:13]}
43. f5+ {[%clk 00:05:34]} {[%emt 00:00:08]} Kf7 {[%clk 00:00:57]} 44. Rd2
{[%clk 00:05:19]} {[%emt 00:00:19]} g6 {[%clk 00:00:52]} {[%emt 00:00:11]} 45.
f6 {[%clk 00:04:58]} {[%emt 00:00:25]} Re1 {[%clk 00:00:38]} {[%emt 00:00:19]}
46. Kg3 {[%clk 00:04:32]} {[%emt 00:00:31]} Re3+ {[%clk 00:00:30]} {[%emt
00:00:14]} 47. Kh4 {[%clk 00:04:14]} {[%emt 00:00:15]} b4 {[%clk 00:00:27]}
{[%emt 00:00:16]} 1/2-1/2



[ePGN "0.1;DGT LiveChess/2.2.6"]